fUSD/lending_fUSD_20250911
["ID","MTS","AMOUNT","RATE_DAILY","PERIOD"]
[384886583,1757617840560,-395.0087572,0.00027259,2]
[384886585,1757617840588,-261.764543,0.00027259,2]
[384886586,1757617840599,-317.979,0.00027259,2]
[384886587,1757617840707,-482.60181618,0.00027259,2]
[384886615,1757617846043,-1176.0,0.00026933,2]
[384886616,1757617846053,-77.50321271,0.00027259,2]
[384886617,1757617846063,-257.91778498,0.00027271,2]
[384886618,1757617846073,-549.6121575,0.00027294,2]
[384886619,1757617846082,-165.53419795,0.00027297,2]
[384886620,1757617846093,-498.233,0.00027297,16]
[384886621,1757617846102,-2610.47081595,0.00027297,2]
[384886622,1757617846111,-21605.95093306,0.000273,5]
[384886623,1757617846121,-1225.0,0.00027363,3]
[384886624,1757617846132,-153.84432297,0.0002737,4]
[384886625,1757617846143,-500.0,0.00027373,2]
[384886626,1757617846153,-496.60232026,0.00027373,2]
[384886627,1757617846175,-3.39767974,0.00027373,2]
[384886628,1757617846184,-573.46003662,0.00027378,2]
[384886629,1757617846206,-426.53996338,0.00027378,2]
[384886630,1757617846215,-1000.0,0.00027378,2]
[384886631,1757617846225,-1000.0,0.00027378,2]
[384886632,1757617846234,-1000.0,0.00027378,2]
[384886633,1757617846243,-721.12765534,0.00027378,2]
[384886634,1757617846252,-1000.0,0.00027378,2]
[384886635,1757617846262,-1000.0,0.00027378,2]
[384886636,1757617846272,-1000.0,0.00027378,2]
[384886637,1757617846282,-1000.0,0.00027378,2]
[384886638,1757617846291,-1000.0,0.00027378,2]
[384886639,1757617846301,-500.0,0.00027378,2]
[384886640,1757617846310,-1000.0,0.00027378,2]
[384886641,1757617846319,-500.0,0.00027378,2]
[384886642,1757617846328,-151.0,0.00027378,2]
[384886643,1757617846337,-500.0,0.00027378,2]
[384886644,1757617846347,-151.0,0.00027378,2]
[384886645,1757617846356,-151.0,0.00027378,2]
[384886646,1757617846366,-208.0,0.00027378,2]
[384886647,1757617846376,-1000.0,0.00027378,2]
[384886648,1757617846385,-1000.0,0.00027378,2]
[384886649,1757617846394,-1000.0,0.00027378,2]
[384886650,1757617846403,-1000.0,0.00027378,2]
[384886651,1757617846412,-1000.0,0.00027378,2]
[384886652,1757617846422,-1000.0,0.00027378,2]
[384886653,1757617846432,-1000.0,0.00027378,2]
[384886654,1757617846445,-1000.0,0.00027378,2]
[384886655,1757617846454,-1000.0,0.00027378,2]
[384886656,1757617846463,-500.0,0.00027378,2]
[384886657,1757617846472,-500.0,0.00027378,2]
[384886658,1757617846481,-4725.29041206,0.00027382,2]
[384886659,1757617846492,-151.0,0.00027384,7]
[384886660,1757617846501,-38795.9351018,0.00027387,2]
[384886661,1757617846512,-551.994769,0.00027387,2]
[384886664,1757617846533,-21644.53570829,0.00027387,2]
[384886666,1757617846544,-353.00684934,0.00027387,2]
[384886668,1757617846555,-495.337008,0.00027387,2]
[384886670,1757617846567,-297.0577,0.00027387,2]
[384886672,1757617846578,-84769.96725173,0.00027387,2]
[384886673,1757617846858,-354.70923108,0.00027387,2]
[384886675,1757617923542,300.0,0.000275,120]
[384886676,1757617966495,-5513.0,0.000248,5]
[384886677,1757617966523,-4275.41055725,0.000249,2]
[384886678,1757617966542,-5513.0,0.000249,2]
[384886679,1757617966562,-4275.41055725,0.000249,2]
[384886680,1757617966573,-11268.18054683,0.000249,2]
[384886683,1757618327954,-300.0,0.00024897,2]
[384886684,1757618327982,-263.0,0.00024897,2]
[384886685,1757618328009,-516.03096971,0.00024897,2]
[384886686,1757618328036,-500.0,0.00024897,2]
[384886687,1757618328063,-500.0,0.00024897,2]
[384886688,1757618328089,-207.19222247,0.00024897,2]
[384886689,1757618328120,-500.0,0.00024897,2]
[384886690,1757618328148,-500.0,0.00024897,2]
[384886691,1757618328176,-500.0,0.00024897,2]
[384886692,1757618328204,-500.0,0.00024897,2]
[384886693,1757618328231,-233.23037456,0.00024897,2]
[384886694,1757618328258,-500.0,0.00024897,2]
[384886695,1757618328287,-500.0,0.00024897,2]
[384886696,1757618328313,-500.0,0.00024897,2]
[384886697,1757618328342,-500.0,0.00024897,2]
[384886698,1757618328368,-500.0,0.00024897,2]
[384886699,1757618328396,-500.0,0.00024897,2]
[384886700,1757618328422,-341.1345196,0.00024897,2]
[384886701,1757618328455,-500.0,0.00024897,2]
[384886702,1757618328484,-500.0,0.00024897,2]
[384886703,1757618328514,-500.0,0.00024897,2]
[384886707,1757618710405,-198.04,0.00024,2]
[384886708,1757618713711,-82.92999972,0.00024,2]
[384886709,1757618776685,157.29,0.00016438,2]
[384886713,1757618821256,-170.20520948,0.00024,5]
[384886714,1757618824965,-157.29,0.00023135,2]
[384886715,1757618824987,-99.88827362,0.00024,5]
[384886716,1757618832541,-165.20234539,0.00024,5]
[384886718,1757618837152,-261.83,0.00024,5]
[384886719,1757618838093,346.37,0.00025149,120]
[384886720,1757618838510,346.37,0.00028293,120]
[384886721,1757618839453,-193.65938418,0.00024,5]
[384886722,1757618842052,-262.0,0.000225,5]
[384886723,1757618845674,-240.12186546,0.00024,5]
[384886724,1757618847358,-201.25298292,0.00024,5]
[384886728,1757619027280,-99.45018657,0.000239,5]
[384886729,1757619029313,-326.95671086,0.000237,5]
[384886730,1757619031488,-94.04328914,0.000237,5]
[384886735,1757619032314,-773.3991641,0.00024,5]
[384886736,1757619032326,-2894.44775361,0.00024,5]
[384886737,1757619032335,-179.92,0.00024,2]
[384886738,1757619032345,-186.39,0.00024,2]
[384886739,1757619032358,-150.0,0.00024633,2]
[384886740,1757619032368,-150.0,0.00024633,2]
[384886741,1757619032378,-150.0,0.00024633,2]
[384886742,1757619032389,-183.1377509,0.00024699,2]
[384886743,1757619032409,-852.74028858,0.00024699,2]
[384886744,1757619032418,-198.04,0.00024796,2]
[384886745,1757619032428,-156.0,0.00024798,2]
[384886746,1757619032437,-1200.0,0.00024798,2]
[384886747,1757619032447,-300.0,0.00024798,2]
[384886748,1757619032456,-300.0,0.00024798,2]
[384886749,1757619032465,-909.0,0.000248,2]
[384886750,1757619032475,-163.55358342,0.000248,30]
[384886751,1757619032484,-305.6979,0.00024877,10]
[384886752,1757619032493,-263.0,0.00024891,2]
[384886753,1757619032503,-500.0,0.00024892,2]
[384886754,1757619032512,-500.0,0.00024892,2]
[384886755,1757619032522,-500.0,0.00024892,2]
[384886756,1757619032531,-500.0,0.00024892,2]
[384886757,1757619032541,-500.0,0.00024892,2]
[384886758,1757619032550,-500.0,0.00024892,2]
[384886759,1757619032560,-500.0,0.00024892,2]
[384886760,1757619032569,-500.0,0.00024892,2]
[384886761,1757619032579,-500.0,0.00024892,2]
[384886762,1757619032589,-500.0,0.00024892,2]
[384886763,1757619032598,-500.0,0.00024892,2]
[384886764,1757619032607,-500.0,0.00024892,2]
[384886765,1757619032617,-500.0,0.00024892,2]
[384886766,1757619032627,-620.0,0.00024892,2]
[384886767,1757619032637,-500.0,0.00024892,2]
[384886768,1757619032647,-500.0,0.00024892,2]
[384886770,1757619032656,-500.0,0.00024892,2]
[384886772,1757619032666,-500.0,0.00024892,2]
[384886773,1757619032676,-500.0,0.00024892,2]
[384886774,1757619032686,-500.0,0.00024892,2]
[384886775,1757619032696,-500.0,0.00024892,2]
[384886777,1757619032706,-237.0,0.00024892,2]
[384886779,1757619032716,-500.0,0.00024892,2]
[384886781,1757619032725,-500.0,0.00024892,2]
[384886783,1757619032734,-500.0,0.00024892,2]
[384886785,1757619032743,-384.11345196,0.00024892,2]
[384886787,1757619032752,-207.19222247,0.00024892,2]
[384886789,1757619032761,-500.0,0.00024892,2]
[384886791,1757619032770,-500.0,0.00024892,2]
[384886793,1757619032779,-500.0,0.00024892,2]
[384886796,1757619032788,-500.0,0.00024892,2]
[384886799,1757619032797,-500.0,0.00024892,2]
[384886802,1757619032807,-500.0,0.00024892,2]
[384886805,1757619032816,-500.0,0.00024892,2]
[384886808,1757619032825,-500.0,0.00024892,2]
[384886811,1757619032834,-500.0,0.00024892,2]
[384886814,1757619032843,-500.0,0.00024892,2]
[384886817,1757619032852,-500.0,0.00024892,2]
[384886819,1757619032861,-500.0,0.00024892,2]
[384886821,1757619032870,-500.0,0.00024892,2]
[384886823,1757619032879,-500.0,0.00024892,2]
[384886825,1757619032888,-500.0,0.00024892,2]
[384886827,1757619032897,-500.0,0.00024892,2]
[384886829,1757619032906,-500.0,0.00024892,2]
[384886831,1757619032915,-500.0,0.00024892,2]
[384886833,1757619032924,-500.0,0.00024892,2]
[384886835,1757619032933,-500.0,0.00024892,2]
[384886859,1757619033203,-500.0,0.00024892,2]
[384886860,1757619033284,-500.0,0.00024892,2]
[384886862,1757619033294,-500.0,0.00024892,2]
[384886864,1757619033303,-500.0,0.00024892,2]
[384886866,1757619033312,-500.0,0.00024892,2]
[384886868,1757619033321,-500.0,0.00024892,2]
[384886870,1757619033331,-500.0,0.00024892,2]
[384886872,1757619033340,-500.0,0.00024892,2]
[384886874,1757619033350,-500.0,0.00024892,2]
[384886876,1757619033359,-500.0,0.00024892,2]
[384886878,1757619033368,-500.0,0.00024892,2]
[384886880,1757619033377,-500.0,0.00024892,2]
[384886881,1757619033386,-500.0,0.00024892,2]
[384886884,1757619033396,-500.0,0.00024892,2]
[384886886,1757619033405,-500.0,0.00024892,2]
[384886888,1757619033415,-500.0,0.00024892,2]
[384886890,1757619033425,-500.0,0.00024892,2]
[384886892,1757619033435,-500.0,0.00024892,2]
[384886894,1757619033445,-500.0,0.00024892,2]
[384886896,1757619033455,-500.0,0.00024892,2]
[384886898,1757619033465,-500.0,0.00024892,2]
[384886900,1757619033474,-152.52609766,0.00024892,2]
[384886902,1757619033483,-500.0,0.00024892,2]
[384886904,1757619033492,-500.0,0.00024892,2]
[384886906,1757619033502,-500.0,0.00024892,2]
[384886908,1757619033511,-500.0,0.00024892,2]
[384886910,1757619033522,-500.0,0.00024892,2]
[384886912,1757619033531,-500.0,0.00024892,2]
[384886914,1757619033540,-500.0,0.00024892,2]
[384886916,1757619033550,-500.0,0.00024892,2]
[384886918,1757619033559,-500.0,0.00024892,2]
[384886920,1757619033568,-500.0,0.00024892,2]
[384886921,1757619033577,-500.0,0.00024892,2]
[384886924,1757619033587,-500.0,0.00024892,2]
[384886926,1757619033596,-500.0,0.00024892,2]
[384886928,1757619033606,-500.0,0.00024892,2]
[384886930,1757619033620,-500.0,0.00024892,2]
[384886931,1757619033631,-500.0,0.00024892,2]
[384886934,1757619033642,-500.0,0.00024892,2]
[384886935,1757619033651,-500.0,0.00024892,2]
[384886937,1757619033660,-500.0,0.00024892,2]
[384886939,1757619033670,-175.78645994,0.00024892,2]
[384886941,1757619033679,-500.0,0.00024892,2]
[384886943,1757619033688,-500.0,0.00024892,2]
[384886945,1757619033698,-500.0,0.00024892,2]
[384886947,1757619033707,-500.0,0.00024892,2]
[384886949,1757619033715,-500.0,0.00024892,2]
[384886951,1757619033725,-500.0,0.00024892,2]
[384886953,1757619033734,-500.0,0.00024892,2]
[384886955,1757619033744,-500.0,0.00024892,2]
[384886957,1757619033753,-4389.6311864,0.000249,2]
[384886959,1757619033762,-1000.0,0.00025306,2]
[384886961,1757619033773,-1000.0,0.00025306,2]
[384886964,1757619033782,-1000.0,0.00025306,2]
[384886966,1757619033791,-1000.0,0.00025306,2]
[384886968,1757619033801,-1000.0,0.00025306,2]
[384886970,1757619033810,-500.0,0.00025306,2]
[384886972,1757619033819,-1000.0,0.00025306,2]
[384886973,1757619033828,-1000.0,0.00025306,2]
[384886976,1757619033838,-1000.0,0.00025306,2]
[384886977,1757619033847,-1000.0,0.00025306,2]
[384886979,1757619033857,-1000.0,0.00025306,2]
[384886981,1757619033866,-151.0,0.00025306,2]
[384886983,1757619033876,-721.12765535,0.00025306,2]
[384886986,1757619033886,-1000.0,0.00025306,2]
[384886988,1757619033895,-865.75929531,0.00025306,2]
[384886990,1757619033905,-257.91778498,0.00025306,2]
[384886992,1757619033914,-1000.0,0.00025306,2]
[384886994,1757619033923,-1000.0,0.00025306,2]
[384886996,1757619033932,-1000.0,0.00025306,2]
[384886998,1757619033941,-1000.0,0.00025306,2]
[384887000,1757619033951,-1000.0,0.00025306,2]
[384887002,1757619033960,-500.0,0.00025306,2]
[384887004,1757619033969,-151.0,0.00025306,2]
[384887006,1757619033978,-179.92,0.00025701,7]
[384887008,1757619033987,-186.39,0.00025701,7]
[384887010,1757619033996,-212.89373682,0.00025831,2]
[384887012,1757619034005,-515.37529716,0.00025844,2]
[384887014,1757619034015,-2396.28,0.0002612,2]
[384887016,1757619034024,-150.0,0.00026203,7]
[384887018,1757619034033,-494.65094175,0.00026245,2]
[384887020,1757619034042,-30845.0,0.00026261,2]
[384887022,1757619034051,-168.0,0.00026289,2]
[384887024,1757619034060,-739.52324061,0.000263,2]
[384887026,1757619034070,-4494.18081117,0.000263,2]
[384887028,1757619034079,-250.0,0.00026342,2]
[384887030,1757619034089,-2370.585643,0.00026345,7]
[384887032,1757619034098,-2370.585643,0.00026345,7]
[384887034,1757619034107,-2370.585643,0.00026345,7]
[384887036,1757619034117,-151.0,0.00026345,7]
[384887037,1757619034126,-2370.585643,0.00026345,7]
[384887039,1757619034136,-151.0,0.00026345,7]
[384887042,1757619034145,-151.0,0.00026345,7]
[384887044,1757619034159,-568.502455,0.00026345,7]
[384887045,1757619034168,-151.0,0.00026345,7]
[384887047,1757619034177,-568.502455,0.00026345,7]
[384887049,1757619034186,-154.094365,0.00026345,7]
[384887050,1757619034198,-151.0,0.00026345,7]
[384887051,1757619034208,-568.502455,0.00026345,7]
[384887052,1757619034218,-151.0,0.00026345,7]
[384887053,1757619034227,-568.502455,0.00026345,7]
[384887054,1757619034236,-151.0,0.00026345,7]
[384887055,1757619034245,-502.639043,0.00026345,7]
[384887056,1757619034254,-502.639043,0.00026345,7]
[384887057,1757619034263,-502.639043,0.00026345,7]
[384887058,1757619034272,-502.639043,0.00026345,7]
[384887059,1757619034281,-151.0,0.00026345,7]
[384887061,1757619034291,-294.602018,0.00026345,7]
[384887062,1757619034299,-294.602018,0.00026345,7]
[384887063,1757619034310,-294.602018,0.00026345,7]
[384887064,1757619034323,-294.602018,0.00026345,7]
[384887065,1757619034333,-151.0,0.00026345,7]
[384887066,1757619034342,-151.0,0.00026345,7]
[384887067,1757619034351,-151.0,0.00026345,7]
[384887068,1757619034360,-151.0,0.00026345,7]
[384887069,1757619034370,-151.0,0.00026345,7]
[384887070,1757619034379,-151.0,0.00026345,7]
[384887071,1757619034389,-152.704054,0.00026345,7]
[384887072,1757619034398,-151.0,0.00026345,7]
[384887073,1757619034407,-151.0,0.00026345,7]
[384887074,1757619034416,-151.0,0.00026345,7]
[384887075,1757619034425,-151.0,0.00026345,7]
[384887076,1757619034435,-151.0,0.00026345,7]
[384887077,1757619034444,-151.0,0.00026345,7]
[384887078,1757619034454,-151.0,0.00026345,7]
[384887079,1757619034464,-151.0,0.00026345,7]
[384887080,1757619034473,-151.0,0.00026345,7]
[384887081,1757619034483,-151.0,0.00026345,7]
[384887082,1757619034492,-151.0,0.00026345,7]
[384887083,1757619034501,-151.0,0.00026345,7]
[384887084,1757619034510,-152.436627,0.00026345,7]
[384887085,1757619034519,-151.490395,0.00026345,7]
[384887086,1757619034528,-151.0,0.00026345,7]
[384887087,1757619034538,-151.0,0.00026345,7]
[384887088,1757619034547,-151.0,0.00026345,7]
[384887089,1757619034557,-151.0,0.00026345,7]
[384887090,1757619034566,-151.0,0.00026345,7]
[384887091,1757619034575,-155.573044,0.00026345,7]
[384887092,1757619034584,-151.0,0.00026345,7]
[384887093,1757619034593,-246.618905,0.00026345,7]
[384887094,1757619034603,-151.0,0.00026345,7]
[384887095,1757619034615,-152.578285,0.00026345,7]
[384887096,1757619034625,-164.047018,0.00026345,7]
[384887097,1757619034636,-164.047018,0.00026345,7]
[384887098,1757619034645,-151.0,0.00026345,7]
[384887099,1757619034654,-164.047018,0.00026345,7]
[384887100,1757619034663,-151.0,0.00026345,7]
[384887101,1757619034672,-164.047018,0.00026345,7]
[384887102,1757619034680,-151.0,0.00026345,7]
[384887103,1757619034690,-666.0,0.00026356,3]
[384887104,1757619034699,-161.94,0.00026356,2]
[384887105,1757619034708,-681.9,0.00026374,2]
[384887106,1757619034717,-253.0,0.000264,2]
[384887107,1757619034727,-4494.1808111,0.00026472,2]
[384887108,1757619034736,-151.0,0.00026491,7]
[384887109,1757619034745,-692.714876,0.00026491,7]
[384887110,1757619034754,-692.714876,0.00026491,7]
[384887111,1757619034763,-692.714876,0.00026491,7]
[384887112,1757619034772,-403.874435,0.00026491,7]
[384887113,1757619034780,-151.0,0.00026491,7]
[384887114,1757619034790,-692.714876,0.00026491,7]
[384887115,1757619034798,-403.874435,0.00026491,7]
[384887116,1757619034807,-151.0,0.00026491,7]
[384887117,1757619034816,-403.874435,0.00026491,7]
[384887118,1757619034825,-151.0,0.00026491,7]
[384887119,1757619034834,-151.0,0.00026491,7]
[384887120,1757619034843,-151.0,0.00026491,7]
[384887121,1757619034852,-403.874435,0.00026491,7]
[384887122,1757619034861,-151.0,0.00026491,7]
[384887123,1757619034870,-151.0,0.00026491,7]
[384887124,1757619034879,-151.447001,0.00026491,7]
[384887125,1757619034888,-151.0,0.00026491,7]
[384887126,1757619034899,-151.0,0.00026491,7]
[384887127,1757619034910,-151.0,0.00026491,7]
[384887128,1757619034920,-2649.35213,0.00026491,7]
[384887129,1757619034930,-151.0,0.00026491,7]
[384887130,1757619034940,-151.0,0.00026491,7]
[384887131,1757619034950,-151.0,0.00026491,7]
[384887132,1757619034960,-2649.35213,0.00026491,7]
[384887133,1757619034970,-151.0,0.00026491,7]
[384887134,1757619034980,-2649.35213,0.00026491,7]
[384887135,1757619034991,-2649.35213,0.00026491,7]
[384887136,1757619035001,-161.974696,0.00026491,7]
[384887137,1757619035011,-161.974696,0.00026491,7]
[384887138,1757619035020,-161.974696,0.00026491,7]
[384887139,1757619035030,-167.070698,0.00026491,7]
[384887140,1757619035039,-151.0,0.00026491,7]
[384887141,1757619035048,-161.974696,0.00026491,7]
[384887142,1757619035058,-167.070698,0.00026491,7]
[384887143,1757619035067,-167.070698,0.00026491,7]
[384887144,1757619035076,-288.511079,0.00026491,7]
[384887145,1757619035088,-167.070698,0.00026491,7]
[384887146,1757619035097,-151.0,0.00026491,7]
[384887147,1757619035106,-151.0,0.00026492,7]
[384887148,1757619035116,-522.526958,0.00026492,7]
[384887149,1757619035126,-476.15728942,0.00026492,7]
[384887150,1757619035140,-46.36966858,0.00026492,7]
[384887151,1757619035149,-522.526958,0.00026492,7]
[384887152,1757619035158,-522.526958,0.00026492,7]
[384887153,1757619035168,-151.0,0.00026492,7]
[384887154,1757619035178,-151.0,0.00026492,7]
[384887155,1757619035188,-364.949045,0.00026492,7]
[384887156,1757619035197,-364.949045,0.00026492,7]
[384887157,1757619035206,-364.949045,0.00026492,7]
[384887158,1757619035216,-364.949045,0.00026492,7]
[384887159,1757619035225,-240.68902,0.00026492,7]
[384887160,1757619035234,-151.0,0.00026492,7]
[384887161,1757619035244,-151.0,0.00026492,7]
[384887162,1757619035253,-151.0,0.00026492,7]
[384887163,1757619035263,-151.0,0.00026492,7]
[384887164,1757619035272,-151.0,0.00026492,7]
[384887165,1757619035281,-151.0,0.00026492,7]
[384887166,1757619035290,-151.0,0.00026492,7]
[384887167,1757619035301,-170.483504,0.00026492,7]
[384887168,1757619035310,-151.0,0.00026492,7]
[384887169,1757619035319,-151.0,0.00026492,7]
[384887170,1757619035328,-151.0,0.00026492,7]
[384887171,1757619035340,-151.0,0.00026492,7]
[384887172,1757619035349,-155.226627,0.00026492,7]
[384887173,1757619035358,-151.0,0.00026492,7]
[384887174,1757619035367,-151.0,0.00026492,7]
[384887175,1757619035376,-233.756667,0.00026492,7]
[384887176,1757619035386,-233.756667,0.00026492,7]
[384887177,1757619035395,-233.756667,0.00026492,7]
[384887178,1757619035404,-233.756667,0.00026492,7]
[384887179,1757619035413,-151.0,0.00026492,7]
[384887180,1757619035423,-494.65094167,0.00026605,2]
[384887181,1757619035432,-151.0,0.00026643,7]
[384887182,1757619035441,-153.145696,0.00026643,7]
[384887183,1757619035451,-151.0,0.00026643,7]
[384887184,1757619035460,-151.0,0.00026643,7]
[384887185,1757619035470,-156.519684,0.00026643,7]
[384887186,1757619035479,-151.0,0.00026643,7]
[384887187,1757619035488,-151.0,0.00026643,7]
[384887188,1757619035498,-151.0,0.00026643,7]
[384887189,1757619035507,-151.0,0.00026643,7]
[384887190,1757619035517,-4494.1808111,0.00026643,2]
[384887191,1757619035527,-267.46074303,0.00026675,2]
[384887192,1757619035537,-7237.88385286,0.00026805,2]
[384887193,1757619035546,-4494.1808111,0.00026815,2]
[384887194,1757619035555,-494.65094167,0.00026966,2]
[384887195,1757619035564,-7237.88385286,0.00026977,2]
[384887196,1757619035574,-7237.88385286,0.00026983,2]
[384887197,1757619035583,-151.0,0.00026984,7]
[384887198,1757619035594,-2647.31721189,0.00026987,2]
[384887199,1757619035606,-1846.86359921,0.00026987,2]
[384887200,1757619035615,-2370.585643,0.00026987,7]
[384887201,1757619035624,-2370.585643,0.00026987,7]
[384887202,1757619035633,-2370.585643,0.00026987,7]
[384887203,1757619035645,-151.0,0.00026987,7]
[384887204,1757619035654,-2370.585643,0.00026987,7]
[384887205,1757619035663,-151.0,0.00026987,7]
[384887206,1757619035672,-568.502455,0.00026987,7]
[384887207,1757619035681,-151.0,0.00026987,7]
[384887208,1757619035691,-568.502455,0.00026987,7]
[384887209,1757619035700,-151.0,0.00026987,7]
[384887210,1757619035709,-568.502455,0.00026987,7]
[384887211,1757619035718,-151.0,0.00026987,7]
[384887212,1757619035727,-568.502455,0.00026987,7]
[384887213,1757619035737,-151.0,0.00026987,7]
[384887214,1757619035746,-502.639043,0.00026987,7]
[384887215,1757619035755,-502.639043,0.00026987,7]
[384887216,1757619035764,-502.639043,0.00026987,7]
[384887217,1757619035773,-502.639043,0.00026987,7]
[384887218,1757619035782,-151.0,0.00026987,7]
[384887219,1757619035791,-294.602018,0.00026987,7]
[384887220,1757619035800,-294.602018,0.00026987,7]
[384887221,1757619035809,-294.602018,0.00026987,7]
[384887222,1757619035818,-294.602018,0.00026987,7]
[384887223,1757619035827,-151.0,0.00026987,7]
[384887224,1757619035837,-151.0,0.00026987,7]
[384887225,1757619035846,-151.0,0.00026987,7]
[384887226,1757619035855,-151.0,0.00026987,7]
[384887227,1757619035864,-151.0,0.00026987,7]
[384887228,1757619035875,-151.0,0.00026987,7]
[384887229,1757619035884,-151.0,0.00026987,7]
[384887230,1757619035894,-181.32621,0.00026987,7]
[384887231,1757619035904,-151.0,0.00026987,7]
[384887232,1757619035914,-151.0,0.00026987,7]
[384887233,1757619035923,-151.0,0.00026987,7]
[384887234,1757619035932,-151.0,0.00026987,7]
[384887235,1757619035941,-151.0,0.00026987,7]
[384887236,1757619035951,-151.0,0.00026987,7]
[384887237,1757619035961,-164.047018,0.00026987,7]
[384887238,1757619035970,-164.047018,0.00026987,7]
[384887239,1757619035979,-151.0,0.00026987,7]
[384887240,1757619035988,-164.047018,0.00026987,7]
[384887241,1757619035999,-151.0,0.00026987,7]
[384887242,1757619036009,-164.047018,0.00026987,7]
[384887243,1757619036019,-151.0,0.00026987,7]
[384887244,1757619036029,-151.0,0.00026987,7]
[384887245,1757619036039,-151.0,0.00026987,7]
[384887246,1757619036050,-228.759349,0.00026987,7]
[384887247,1757619036060,-151.0,0.00026987,7]
[384887248,1757619036069,-151.0,0.00026987,7]
[384887249,1757619036077,-151.0,0.00026987,7]
[384887250,1757619036087,-151.0,0.00026987,7]
[384887251,1757619036097,-151.0,0.00026987,7]
[384887252,1757619036106,-151.0,0.00026987,7]
[384887253,1757619036115,-151.0,0.00026987,7]
[384887254,1757619036124,-151.0,0.00026987,7]
[384887255,1757619036134,-233.756667,0.00026987,7]
[384887256,1757619036144,-233.756667,0.00026987,7]
[384887257,1757619036153,-233.756667,0.00026987,7]
[384887258,1757619036162,-233.756667,0.00026987,7]
[384887259,1757619036174,-1680.0,0.00026992,2]
[384887260,1757619036183,-185.0,0.00027,7]
[384887261,1757619036192,-150.0,0.00027,7]
[384887262,1757619036201,-151.0,0.00027158,7]
[384887263,1757619036210,-151.0,0.00027158,7]
[384887264,1757619036219,-151.0,0.00027158,7]
[384887265,1757619036229,-151.0,0.00027158,7]
[384887266,1757619036238,-151.0,0.00027158,7]
[384887267,1757619036248,-172.406144,0.00027158,7]
[384887268,1757619036257,-151.0,0.00027158,7]
[384887269,1757619036267,-151.0,0.00027158,7]
[384887270,1757619036276,-151.0,0.00027158,7]
[384887271,1757619036285,-233.756667,0.00027158,7]
[384887272,1757619036294,-233.756667,0.00027158,7]
[384887273,1757619036303,-233.756667,0.00027158,7]
[384887274,1757619036313,-233.756667,0.00027158,7]
[384887275,1757619036322,-4494.1808111,0.00027158,2]
[384887276,1757619036331,-168.0,0.0002723,2]
[384887277,1757619036340,-12015.58951436,0.00027268,2]
[384887278,1757619036378,-869.65016352,0.00027268,2]
[384887279,1757619036391,-3494.65425108,0.00027268,2]
[384887280,1757619036402,-858.62317894,0.00027268,2]
[384887281,1757619036414,-516.28953082,0.00027268,2]
[384887282,1757619036426,-3958.84491988,0.00027268,2]
[384887283,1757619036437,-522.526958,0.00027278,7]
[384887284,1757619036446,-473.6319273,0.00027278,7]
[384887285,1757619036522,-48.8950307,0.00027278,7]
[384887286,1757619036531,-522.526958,0.00027278,7]
[384887287,1757619036540,-522.526958,0.00027278,7]